[Event "34th MPL National U14-ch 2022"]
[Site "Ahmedabad"]
[Date "2022.05.14"]
[Round "11.2"]
[White "Koustuv Dash"]
[Black "Bagwe Gaurang"]
[Result "0-1"]
[ECO "D11"]
[WhiteElo "1910"]
[BlackElo "1789"]
[Annotator "TA"]
[PlyCount "114"]
[EventDate "2022.05.09"]
[EventType "swiss"]
[EventCountry "IND"]
[SourceTitle "playchess.com"]
[Source "ChessBase"]
[SourceQuality "1"]
[TimeControl "5400+30"]

{[%evp 13,114,4,24,25,27,21,26,15,40,41,35,47,50,14,14,17,22,0,0,0,0,0,0,0,7,13,20,12,19,-5,5,0,9,0,18,0,7,0,0,0,0,0,0,0,0,-7,0,0,0,0,0,0,0,0,0,0,0,0,0,0,0,-12,-5,0,0,-13,-18,-408,-392,-1085,-1204,-1136,-1131,-898,-861,-938,-879,-1609,-1597,-1622,-1651,-3876,-3358,-12838,-12837,-12837,-12836,-12843,-12843,-12844,-12844,-12846,-12847,-12847,-12847,-12849,-12850,-12850,-12850,-27999,-27999,-27999,-27999]} 1. d4 {[%emt 0:00:27]} d5 {[%emt 0:00:08]} 2. c4 {[%emt 0:00:03]} c6 {[%emt 0:00:02]} 3. Nf3 {[%emt 0:00:05]} Nf6 {[%emt 0:00:04]} 4. Qc2 {[%emt 0:00:04]} g6 {[%emt 0:01:10]} 5. Bf4 {[%emt 0:00:08]} Bf5 {[%emt 0:08:18]} 6. Qb3 {[%emt 0:00:01]} Nbd7 {[%emt 0:02:52]} 7. e3 {[%emt 0:03:33]} Qb6 {[%emt 0:03:29]} 8. Nc3 {[%emt 0:01:58] D11: Slav Defence: 3 Nf3 sidelines and 3...Nf6 4 e3 Bg4.} Bg7 {[%emt 0:04:57]} 9. h3 {[%emt 0:00:31]} O-O {[%emt 0:01:36]} 10. Be2 {[%emt 0:01:40][%cal Bf1e2,Be2c4,Bc4b3,Bb3c2,Bc2d3][%mdl 32] White has an edge.} Rfe8 {[%emt 0:02:36]} 11. O-O {[%emt 0:03:10][%cal Rc4d5]} dxc4 {[%emt 1:10:48]} 12. Bxc4 {[%emt 0:00:23] [#]} ({Much worse is} 12. Qxc4 Qxb2 13. Rfc1 (13. Ng5 e6 $15) 13... Nb6 $15) 12... e6 $146 {[%emt 0:00:00]} ({Predecessor:} 12... Qxb3 13. Bxb3 h6 14. g4 Be4 15. Nxe4 Nxe4 16. Rfd1 a5 17. Bc2 Nd6 18. Rac1 g5 {½-½ (43) Arkell,K (2457)-Sarakauskas,G (2416) Crawley 2016}) 13. Ne5 {[%emt 0:09:47]} Nxe5 {[%emt 0:00:00]} 14. Bxe5 {[%emt 0:22:21]} Ne4 {[%emt 0:00:00]} 15. Nxe4 {[%emt 0:00:33]} (15. Bxg7 {is interesting.} Kxg7 16. Rfd1 Nd6 17. Rac1) 15... Bxe4 {[%emt 0:00:00]} 16. Bxg7 {[%emt 0:00:18]} Qxb3 {[%emt 0:00:00]} 17. Bxb3 {[%emt 0:00:18]} Kxg7 {[%emt 0:00:00]} 18. Rfd1 {[%emt 0:00:25]} a5 {[%emt 0:00:00]} 19. f3 {[%emt 0:02:19]} Bd5 {[%emt 0:00:00]} 20. Bc2 {[%emt 0:06:26]} Bc4 {[%emt 0:00:00]} 21. Bd3 {[%emt 0:00:10]} Ba6 {[%emt 0:00:00]} 22. Kf2 {[%emt 0:01:33]} a4 {[%emt 0:00:00]} 23. Rac1 {[%emt 0:00:29]} Red8 {[%emt 0:00:00]} 24. Ke2 {[%emt 0:00:41]} Kf6 {[%emt 0:00:00]} 25. Bc4 {[%emt 0:00:36]} h5 {[%emt 0:00:00]} 26. h4 {[%emt 0:03:15]} Rd5 {[%emt 0:00:00]} 27. e4 {[%emt 0:02:54]} Bxc4+ {[%emt 0:00:00]} 28. Rxc4 $11 {[%emt 0:00:02][%mdl 4096] Endgame KRR-KRR} Rb5 {[%emt 0:00:00]} 29. Rd2 {[%emt 0:00:15]} g5 {[%emt 0:00:00]} 30. g3 {[%emt 0:04:53]} gxh4 {[%emt 0:09:30]} 31. gxh4 {[%emt 0:00:03]} a3 {[%emt 0:00:00]} 32. b3 {[%emt 0:00:16]} Rxb3 {[%emt 0:00:00]} 33. axb3 {[%emt 0:01:09]} ({But not} 33. e5+ Kf5 34. axb3 a2 35. Rxa2 Rxa2+ 36. Ke3 Rb2 $17) 33... a2 {[%emt 0:00:00]} 34. Rd1 {[%emt 0:01:43]} ({Much weaker is} 34. e5+ Kf5 35. Rd1 a1=Q 36. Rxa1 Rxa1 $17) 34... a1=Q {[%emt 0:00:00] Against Ra4} 35. Rxa1 {[%emt 0:00:01]} Rxa1 {[%emt 0:00:00] KR-KR} 36. Kf2 {[%emt 0:02:21]} Rb1 {[%emt 0:00:00]} 37. Rc3 {[%emt 0:09:02]} Rd1 {[%emt 0:00:00]} 38. Ke3 {[%emt 0:04:09]} Rh1 {[%emt 0:00:00]} 39. Rc4 {[%emt 0:00:16]} Rxh4 {[%emt 0:00:00]} 40. Rb4 $2 {[%emt 0:02:26][%mdl 8192] This costs White the game.} (40. b4 $1 $11 {and White has nothing to worry.}) 40... b5 $19 {[%emt 0:00:00] Threatens to win with ...Kg5.} 41. d5 $2 {[%emt 0:00:29]} (41. f4 Rh3+ 42. Kd2) 41... exd5 {[%emt 0:00:00]} 42. Rd4 {[%emt 0:02:20]} Ke5 {[%emt 0:00:00]} 43. Rd1 {[%emt 0:00:59]} dxe4 {[%emt 0:00:00] [#] aiming for ...Rh3.} 44. Rd7 {[%emt 0:00:18]} f5 {[%emt 0:00:00] Hoping for ...Rh3.} 45. Re7+ {[%emt 0:00:20]} Kd6 {[%emt 0:00:00]} 46. Rf7 {[%emt 0:00:08]} Rh3 {[%emt 0:00:00]} 47. Rf6+ {[%emt 0:00:15]} Ke5 {[%emt 0:00:00]} 48. Rxc6 {[%emt 0:00:06]} Rxf3+ {[%emt 0:00:00]} 49. Ke2 {[%emt 0:00:04]} Rxb3 {[%emt 0:00:00]} 50. Rh6 {[%emt 0:00:15]} Rb2+ {[%emt 0:00:00]} 51. Ke1 {[%emt 0:00:04]} f4 {[%emt 0:00:00]} 52. Rxh5+ {[%emt 0:00:04]} Kd4 {[%emt 0:00:00]} 53. Rh3 {[%emt 0:00:10]} f3 {[%emt 0:00:00]} 54. Kd1 {[%emt 0:00:14]} f2 {[%emt 0:00:00][%cal Rf2f1] [#]} 55. Kc1 {[%emt 0:00:21]} f1=Q+ {[%emt 0:12:30]} 56. Kxb2 {[%emt 0:00:05]} Qxh3 {[%emt 0:00:00]} 57. Ka1 {[%emt 0:00:06]} Qg2 {[%emt 0:00:00] Weighted Error Value: White=0.77/Black=0.03 (flawless)} 0-1

[Event "34th MPL National U14-ch 2022"]
[Site "Ahmedabad"]
[Date "2022.05.14"]
[Round "11.3"]
[White "Kadam Om Manish"]
[Black "Ilamparthi A R"]
[Result "0-1"]
[ECO "B01"]
[WhiteElo "2144"]
[BlackElo "2121"]
[Annotator "TA"]
[PlyCount "66"]
[EventDate "2022.05.09"]
[EventType "swiss"]
[EventCountry "IND"]
[SourceTitle "playchess.com"]
[Source "ChessBase"]
[SourceQuality "1"]
[TimeControl "5400+30"]

{[%evp 10,66,23,0,0,0,0,0,0,-12,-8,0,-17,-26,0,-16,-36,-100,-91,-127,-81,-88,-103,-104,-62,-71,-45,-179,-181,-190,-187,-190,-181,-192,-83,-166,-122,-442,-439,-437,-387,-361,-394,-449,-441,-412,-360,-370,-366,-481,-480,-481,-453,-555,-652,-993,-991,-2412,-2331]} 1. e4 {[%emt 0:00:03]} Nc6 {[%emt 0:00:08]} 2. Nf3 {[%emt 0:00:30]} d5 {[%emt 0:00:13]} 3. exd5 {[%emt 0:05:03]} Qxd5 {[%emt 0:00:02]} 4. d4 {[%emt 0:01:25]} Bg4 {[%emt 0:01:56]} 5. Be2 {[%emt 0:00:06]} O-O-O {[%emt 0:00:34]} 6. c4 {[%emt 0:01:35]} Qf5 {[%emt 0:00:30] B01: Scandinavian Defence.} 7. Be3 {[%emt 0:00:48] Black must now prevent 0-0.} Bxf3 {[%emt 0:02:22]} 8. Bxf3 {[%emt 0:00:44] And now Bg4 would win.} Nxd4 $1 {[%emt 0:01:56] The position is equal.} 9. Bg4 {[%emt 0:05:00] [#] A strong pair of Bishops.} (9. Bxd4 $5 {[%cal Rf3g4]} Qe6+ 10. Be2 $11) 9... Nc2+ {[%emt 0:00:38]} 10. Qxc2 $1 {[%emt 0:00:04]} Qxg4 {[%emt 0:00:07]} 11. O-O {[%emt 0:00:05]} Nf6 {[%emt 0:15:53] [#]} 12. Qa4 $146 {[%emt 0:03:03]} ({Predecessor:} 12. Bxa7 e6 13. Be3 Bd6 14. h3 Qe4 15. Qa4 Qe5 16. g3 Qf5 17. Nc3 Qxh3 18. Rfd1 {1-0 (54) Kevlishvili,R (2491)-Shimanov,A (2581) Chess.com INT 2022}) 12... a6 {[%emt 0:01:18]} 13. Nc3 {[%emt 0:01:58]} ({Better is} 13. h3 $15 Qf5 14. b4) 13... e6 $17 {[%emt 0:01:55][%cal Be7e6,Be6e5,Be5e4][%mdl 32]} 14. h3 {[%emt 0:01:38]} Qh4 {[%emt 0:02:21]} (14... Qf5 $142 15. Rad1 Bc5 16. Bxc5 Qxc5) 15. Rac1 {[%emt 0:05:27]} Bd6 {[%emt 0:13:09]} 16. f4 {[%emt 0:07:03]} c6 {[%emt 0:16:18]} 17. Rf3 {[%emt 0:17:43]} e5 {[%emt 0:39:40]} 18. b4 {[%emt 0:04:24] [#]} (18. c5 $15 Bc7 19. fxe5 Qxa4 20. Nxa4 Bxe5 21. Nb6+ Kb8 22. Nc4) 18... e4 $1 $19 {[%emt 0:00:00]} (18... exf4 19. Bf2 Qg5 20. b5 $16) 19. Rff1 {[%emt 0:11:21] Strongly threatening b5.} Qg3 {[%emt 0:00:00]} 20. Rce1 {[%emt 0:11:00]} g5 {[%emt 0:00:00][%cal Bg7g5,Bg5f4,Bf4e3][%mdl 32]} 21. Qa5 {[%emt 0:05:23] [#]} c5 {[%emt 0:00:00]} ({Inferior is} 21... gxf4 22. Qf5+ Rd7 23. Bxf4 (23. Qxf6 $2 Rg8 $19) 23... Qxc3 24. Bxd6 Qd4+ 25. Kh1 Qxd6 26. Qxf6 Qxf6 27. Rxf6 $17) ({And not} 21... Bxf4 22. Bxf4 gxf4 23. Qf5+ (23. Nxe4 Nxe4 24. Rxe4 Rd2 $11) 23... Rd7 24. Nxe4 Nxe4 25. Rxe4 $14 (25. Qxe4 Rg8 $17)) (21... Rhg8 $1 $19 {[%cal Rg5f4] has better winning chances.} 22. Qf5+ Rd7) 22. bxc5 {[%emt 0:06:19]} (22. Nb5 $17 {was necessary.} axb5 23. bxc5 Bxf4 24. Qa8+ Bb8 25. c6 Qh2+ 26. Kf2) 22... Bc7 $40 {[%emt 0:00:00][%mdl 128] Black wants a kill.} 23. Qa3 {[%emt 0:00:03][%mdl 8192]} (23. Qb4 $17 {nothing else works.} Rd3 24. c6 bxc6 25. Qe7 Rxe3 26. Ne2 Rxe2 27. Rxe2) 23... gxf4 {[%emt 0:00:00]} 24. Ne2 {[%emt 0:04:51]} Qxe3+ {[%emt 0:00:00]} 25. Qxe3 {[%emt 0:00:02]} fxe3 {[%emt 0:00:00]} 26. Rxf6 {[%emt 0:00:01]} Ba5 {[%emt 0:00:00]} 27. Rb1 {[%emt 0:04:18]} Rd2 $1 {[%emt 0:00:00][%csl LRa2,LRe2]} 28. Kf1 {[%emt 0:00:08]} Rhd8 {[%emt 0:00:00] ( -> ...Rd1+)} 29. Rd6 {[%emt 0:00:55]} R8xd6 {[%emt 0:00:00] Black is clearly winning.} 30. cxd6 {[%emt 0:00:02]} Rxd6 {[%emt 0:00:00] ...Rf6+ is the strong threat.} 31. Ng3 {[%emt 0:00:19]} Rd2 {[%emt 0:00:00]} 32. a3 {[%emt 0:00:04]} f5 {[%emt 0:00:00][%cal Bf7f5,Bf5f4][%mdl 32]} 33. Ne2 {[%emt 0:00:53]} f4 {[%emt 0:00:00] Weighted Error Value: White=0.77/Black=0.10 (very precise)} 0-1

[Event "34th MPL National U14-ch 2022"]
[Site "Ahmedabad"]
[Date "2022.05.14"]
[Round "11.4"]
[White "Bharadia Yash"]
[Black "Adireddy Arjun"]
[Result "1-0"]
[ECO "B90"]
[WhiteElo "1924"]
[BlackElo "1898"]
[Annotator "TA"]
[PlyCount "81"]
[EventDate "2022.05.09"]
[EventType "swiss"]
[EventCountry "IND"]
[SourceTitle "playchess.com"]
[Source "ChessBase"]
[SourceQuality "1"]
[TimeControl "5400+30"]

{[%evp 23,81,23,18,41,41,0,0,0,0,-20,23,34,10,0,58,-21,-6,-4,0,-75,30,18,115,23,11,19,21,21,486,493,486,486,489,487,1630,1631,1497,701,29978,29979,29976,29976,12794,12793,29982,29983,29983,29984,29988,29989,29989,29990,29987,5173,29995,29994,29995,29996,29996,29997]} 1. e4 {[%emt 0:07:46]} c5 2. Nf3 {[%emt 0:00:30]} d6 3. d4 {[%emt 0:00:30]} cxd4 4. Nxd4 {[%emt 0:00:30]} Nf6 5. Nc3 {[%emt 0:00:30]} a6 {[%emt 0:02:44]} 6. Be3 {[%emt 0:02:24]} e5 {[%emt 0:00:00]} 7. Nb3 {[%emt 0:00:08]} Be6 {[%emt 0:00:00]} 8. f3 {[%emt 0:00:14]} Be7 {[%emt 0:00:00]} 9. Qd2 {[%emt 0:00:06]} O-O {[%emt 0:00:00]} 10. O-O-O {[%emt 0:00:04]} Nbd7 {[%emt 0:00:00]} 11. g4 {[%emt 0:00:03][%cal Bg2g4,Bg4g5][%mdl 32]} b5 {[%emt 0:00:00]} 12. g5 {[%emt 0:01:08]} b4 {[%emt 0:00:02] 12...Nh5 might become the main line.} 13. Ne2 {[%emt 0:00:39] B90: Sicilian Najdorf: Unusual White 6th moves, 6 Be3 Ng4 and 6 Be3 e5.} Ne8 {[%emt 0:00:07]} 14. Ng3 {[%emt 0:05:02]} (14. Qxb4 a5 15. Qe1 a4 $15) 14... a5 $1 {[%emt 0:08:22][%cal Ba6a5,Ba5a4,Ba4b3][%mdl 32] White must now prevent ...a4.} 15. Kb1 {[%emt 0:00:05] The position is equal.} a4 {[%emt 0:11:52]} 16. Nc1 {[%emt 0:00:04]} Nc7 {[%emt 0:02:15]} (16... b3 $5) 17. f4 $1 {[%emt 0:16:21]} exf4 {[%emt 0:05:03]} 18. Bxf4 {[%emt 0:02:34]} b3 {[%emt 0:01:34]} (18... Nc5 $11) 19. cxb3 {[%emt 0:01:57]} ({Don't play} 19. axb3 axb3 20. Nxb3 Bxb3 21. cxb3 Ne6 $11) (19. Nf5 $14) 19... axb3 $11 {[%emt 0:00:24][%cal Ra8a2] ...Rxa2 is the strong threat.} 20. a3 {[%emt 0:01:28]} (20. Nxb3 $2 Rxa2 $1 21. Nf5 (21. Qc3 $2 Qa8 $19) 21... Bxb3 $19) 20... Ne5 {[%emt 0:21:37] [#]} 21. h4 $146 {[%emt 0:02:16]} (21. Nf5 $11 {keeps the balance.}) ({Predecessor:} 21. Nf5 Ra4 22. Nxe7+ Qxe7 23. Qxd6 Qxd6 24. Rxd6 Rxe4 25. Bg3 Re3 26. Ka1 Bf5 27. Bxe5 Rxe5 {½-½ (39) Egelstaff,R (2255)-Kaupert,V (2254) ICCF email 2017}) 21... f6 {[%emt 0:06:02]} (21... Qc8 $1 $17) 22. Nf5 {[%emt 0:05:52]} d5 {[%emt 0:11:13]} (22... Ra4 $11) 23. Qg2 {[%emt 0:20:16]} (23. Qc3 $16 Bxf5 24. exf5) 23... Bxf5 {[%emt 0:11:20]} 24. exf5 {[%emt 0:00:04]} Qd7 {[%emt 0:01:27]} 25. Bxe5 $40 {[%emt 0:02:07][%mdl 128] White has some attack.} Qxf5+ $2 {[%emt 0:00:57][%mdl 8192] This move loses the game for Black.} (25... fxe5 $11 {and Black stays safe.} 26. f6 Bd6) 26. Bd3 $18 {[%emt 0:00:21]} Qxe5 {[%emt 0:00:03]} 27. Rhe1 {[%emt 0:00:14]} Qd6 {[%emt 0:00:12] [#]} 28. Qe2 $1 {[%emt 0:00:48] Intending Bxh7+ and mate.} Rfe8 {[%emt 0:10:41] [#]} (28... g6 $142 29. Qxe7 Qb6 30. gxf6 Rf7) 29. Bxh7+ $1 {[%emt 0:00:41][%mdl 512]} Kf8 {[%emt 0:00:24]} 30. Bg6 {[%emt 0:01:34]} (30. Qh5 $142 d4 31. Bg6) 30... d4 {[%emt 0:00:50]} 31. Qh5 {[%emt 0:04:35][%cal Rh5h8]} Qd5 {[%emt 0:00:02] [#]} 32. Rxd4 $3 {[%emt 0:00:10][%mdl 512]} Qg8 {[%emt 0:00:07]} 33. Bxe8 {[%emt 0:03:06][%cal Oe1e7] White wants to mate with Rxe7!} Rxe8 {[%emt 0:00:02]} 34. g6 {[%emt 0:00:10]} Ne6 {[%emt 0:00:17]} 35. Rde4 {[%emt 0:00:04]} Bd6 {[%emt 0:00:10]} 36. Qd5 {[%emt 0:00:09]} Be5 {[%emt 0:00:06]} 37. Rxe5 {[%emt 0:00:51]} fxe5 {[%emt 0:00:07]} 38. Nd3 {[%emt 0:00:44]} (38. Qd6+ $142 Re7 39. Rxe5 Ke8 40. Qc6+ Rd7 41. Qc8+ Ke7 42. Qxg8 Rd6 43. Qf7+ Kd8 44. Rb5) 38... Qh8 {[%emt 0:00:22]} 39. Nxe5 {[%emt 0:00:14] White mates.} Qxh4 {[%emt 0:00:10]} 40. Nd7+ {[%emt 0:00:54]} Kg8 {[%emt 0:00:07]} 41. Rxe6 {[%emt 0:00:39] Weighted Error Value: White=0.20 (precise) /Black=0.87} 1-0

[Event "34th MPL National U14-ch 2022"]
[Site "Ahmedabad"]
[Date "2022.05.14"]
[Round "11.5"]
[White "Jval Saurin Patel"]
[Black "Aswath S"]
[Result "1-0"]
[ECO "D31"]
[WhiteElo "1712"]
[BlackElo "1694"]
[Annotator "NA RC COMBH"]
[PlyCount "67"]
[EventDate "2022.05.09"]
[EventType "swiss"]
[EventCountry "IND"]
[SourceTitle "playchess.com"]
[Source "ChessBase"]
[SourceQuality "1"]
[TimeControl "5400+30"]

1. d4 {[%emt 0:00:07]} d5 {[%emt 0:00:08]} 2. c4 {[%emt 0:00:08]} e6 {[%emt 0:00:05]} 3. Nc3 {[%emt 0:00:07]} c6 {[%emt 0:00:04]} 4. e4 {[%emt 0:00:04]} dxe4 {[%emt 0:00:06]} 5. Nxe4 {[%emt 0:00:08]} Bb4+ {[%emt 0:00:05]} 6. Bd2 {[%emt 0:00:09]} Qxd4 {[%emt 0:00:17]} 7. Bxb4 {[%emt 0:00:10]} Qxe4+ {[%emt 0:00:07]} 8. Be2 {[%emt 0:00:08]} Na6 {[%emt 0:00:17]} 9. Bc3 {[%emt 0:04:59]} Bd7 {[%emt 0:12:39]} 10. Qd6 {[%emt 0:10:04]} Nf6 {[%emt 0:07:20]} 11. O-O-O {[%emt 0:13:36]} Rd8 {[%emt 0:05:55]} 12. Bd3 {[%emt 0:02:51]} Qxg2 {[%emt 0:18:09]} 13. Ne2 {[%emt 0:00:23]} Qg5+ {[%emt 0:00:17]} 14. Kb1 {[%emt 0:05:17]} Bc8 {[%emt 0:02:22]} 15. Qa3 {[%emt 0:11:42]} Qc5 {[%emt 0:04:35]} 16. b4 {[%emt 0:04:44]} Qe7 {[%emt 0:04:37]} 17. Rhg1 {[%emt 0:01:23]} e5 {[%emt 0:01:39]} 18. Ng3 {[%emt 0:03:17]} c5 {[%emt 0:12:41]} 19. Qa4+ {[%emt 0:08:33]} Bd7 {[%emt 0:05:07]} 20. b5 {[%emt 0:00:31]} Nb4 {[%emt 0:06:45]} 21. Bf5 {[%emt 0:00:54]} e4 {[%emt 0:08:43]} 22. Bxd7+ {[%emt 0:02:11]} Rxd7 {[%emt 0:01:10]} 23. Nf5 {[%emt 0:00:43]} Qd8 {[%emt 0:00:25]} 24. Nxg7+ {[%emt 0:07:21]} Kf8 {[%emt 0:02:16]} 25. Bxb4 {[%emt 0:02:50]} cxb4 {[%emt 0:00:25]} 26. Nf5 {[%emt 0:00:02]} Rd3 {[%emt 0:02:09]} 27. Qxb4+ {[%emt 0:00:06]} Ke8 {[%emt 0:00:06]} 28. Nd6+ {[%emt 0:00:15]} Qxd6 {[%emt 0:03:01]} 29. Qxd6 {[%emt 0:00:18]} Rxd6 {[%emt 0:00:04]} 30. Rxd6 {[%emt 0:00:12]} Ke7 {[%emt 0:00:06]} 31. Rd4 {[%emt 0:01:21]} Rc8 {[%emt 0:00:33]} 32. Rg5 {[%emt 0:00:22]} Ke6 {[%emt 0:00:13]} 33. c5 {[%emt 0:00:23]} h6 {[%emt 0:00:05]} 34. Rd6+ {[%emt 0:00:04]} 1-0

[Event "34th MPL National U14-ch 2022"]
[Site "Ahmedabad"]
[Date "2022.05.14"]
[Round "11.6"]
[White "Shankhodip De"]
[Black "Md Imran"]
[Result "1-0"]
[ECO "E04"]
[WhiteElo "1810"]
[BlackElo "2122"]
[Annotator "TA"]
[PlyCount "68"]
[EventDate "2022.05.09"]
[EventType "swiss"]
[EventCountry "IND"]
[SourceTitle "playchess.com"]
[Source "ChessBase"]
[SourceQuality "1"]
[TimeControl "5400+30"]

{[%evp 11,68,19,23,10,6,15,24,17,16,23,18,20,21,0,20,23,27,0,29,13,22,-2,26,18,22,23,27,28,47,57,36,14,40,35,35,32,87,101,261,253,256,248,297,310,566,491,589,588,1093,946,662,1084,1202,1007,1364,762,727,720,681]} 1. d4 {[%emt 0:00:19]} Nf6 {[%emt 0:00:09]} 2. c4 {[%emt 0:00:06]} e6 {[%emt 0:00:08]} 3. g3 {[%emt 0:00:10]} d5 {[%emt 0:00:06][%cal Bd7d5,Bd5c4][%mdl 32]} 4. Bg2 {[%emt 0:00:07]} dxc4 {[%emt 0:00:05]} 5. Nf3 {[%emt 0:00:04]} Bb4+ {[%emt 0:00:04]} 6. Bd2 {[%emt 0:00:50]} a5 {[%emt 0:00:23]} 7. a3 {[%emt 0:00:32] E04: Open Catalan: 5 Nf3.} Be7 {[%emt 0:01:41]} 8. Qa4+ {[%emt 0:01:35]} c6 {[%emt 0:02:31]} 9. Qxc4 {[%emt 0:00:07] White has an edge.} O-O {[%emt 0:00:07]} 10. O-O {[%emt 0:00:28]} b5 {[%emt 0:00:53]} 11. Qc2 {[%emt 0:02:29]} Bb7 {[%emt 1:29:53] [#]} 12. Bg5 $146 {[%emt 0:07:20]} ({Predecessor:} 12. Nc3 Qb6 13. e4 h6 14. e5 {1-0 (14) Perez Lopez,A (2409)-Jerkovic,L (2263) ICCF email 2018}) 12... Qb6 {[%emt 0:00:00]} 13. Nbd2 {[%emt 0:02:10]} Nbd7 {[%emt 0:00:00]} 14. Bxf6 {[%emt 0:01:23]} (14. Ne4 {seems wilder.} Rfc8 15. Ne5 Qxd4 16. Ng4) 14... Bxf6 {[%emt 0:00:00]} 15. Ne4 {[%emt 0:03:49] Prevents c5.} Be7 {[%emt 0:00:00]} 16. Rac1 {[%emt 0:00:46]} (16. Neg5 g6 $15) 16... b4 {[%emt 0:00:00]} 17. Nc5 {[%emt 0:03:19]} Nxc5 {[%emt 0:00:00]} 18. dxc5 {[%emt 0:00:04]} Qc7 {[%emt 0:00:00]} 19. Rfd1 {[%emt 0:15:19]} Rfd8 {[%emt 0:00:00]} 20. Rxd8+ {[%emt 0:59:33]} Bxd8 {[%emt 0:00:00]} 21. e4 {[%emt 0:00:00][%cal Be2e4,Be4e5,Be5d6][%mdl 32]} Bf6 {[%emt 0:00:00]} 22. Rd1 {[%emt 0:00:00]} Rd8 {[%emt 0:00:00]} 23. e5 {[%emt 0:00:00]} Be7 {[%emt 0:00:00] [#]} ({Better is} 23... Rxd1+ $14 24. Qxd1 Be7) 24. Rd6 $1 $16 {[%emt 0:00:00]} Bxd6 $2 {[%emt 0:00:00] This costs Black the game.} (24... bxa3 $16 25. bxa3 Ra8) 25. exd6 $18 {[%emt 0:00:00]} ({Worse is} 25. cxd6 Qb6 $11) 25... Qb8 {[%emt 0:00:00]} 26. Ne5 {[%emt 0:00:00]} ({Weaker is} 26. axb4 axb4 27. Qa4 Qa8 28. Qxb4 Rb8 $14) 26... bxa3 {[%emt 0:00:00]} 27. bxa3 {[%emt 0:00:00]} Qa7 $2 {[%emt 0:00:00]} (27... f6 {was worth a try.}) 28. Bxc6 {[%emt 0:00:00] White is clearly winning.} f6 {[%emt 0:00:00]} 29. Bxb7 {[%emt 0:00:00] Black must now prevent Nc6.} Qxb7 {[%emt 0:00:00] KQR-KQN} 30. c6 {[%emt 0:00:00][%cal Bc5c6,Bc6c7][%mdl 32]} Qc8 {[%emt 0:00:00]} 31. Nd7 {[%emt 0:00:00]} Kf7 {[%emt 0:00:00]} 32. Nb6 {[%emt 0:00:00]} Qa6 {[%emt 0:00:00]} 33. c7 {[%emt 0:00:00]} Qxb6 {[%emt 0:00:00]} 34. d7 {[%emt 0:00:00][%mdl 64] [#] Promotion} ({Not} 34. cxd8=B Qxd8 35. Qc7+ (35. Qxh7 Qxd6 36. Qh5+ Ke7 $16) 35... Ke8 $18) 34... Rxd7 {[%emt 0:00:00] Weighted Error Value: White=0.09 (flawless) /Black=0.32} 1-0